[Event "GrandPrix_30.05"]
[Site "Chess.com"]
[Date "2020.05.30"]
[Round "2"]
[White "ploky25"]
[Black "Vuk2000"]
[Result "1-0"]
[WhiteElo "2195"]
[BlackElo "2262"]
[TimeControl "600+2"]
[EndTime "8:54:20 PDT"]
[Termination "ploky25 won by resignation"]

1. d4 {[%clk 0:09:59.7]} 1... e6 {[%clk 0:10:00.7]} 2. c4 {[%clk 0:09:59.1]}
2... Nf6 {[%clk 0:09:59.1]} 3. Nc3 {[%clk 0:09:58.4]} 3... Bb4 {[%clk
0:09:58.9]} 4. e3 {[%clk 0:09:56.6]} 4... O-O {[%clk 0:09:59.2]} 5. Bd3 {[%clk
0:09:56.3]} 5... d5 {[%clk 0:09:55.1]} 6. cxd5 {[%clk 0:09:52.3]} 6... exd5
{[%clk 0:09:55.1]} 7. Ne2 {[%clk 0:09:52.4]} 7... c5 {[%clk 0:09:54.3]} 8. a3
{[%clk 0:09:49.3]} 8... Bxc3+ {[%clk 0:09:48.8]} 9. bxc3 {[%clk 0:09:49.4]} 9...
Nc6 {[%clk 0:09:47.8]} 10. O-O {[%clk 0:09:44.5]} 10... Bg4 {[%clk 0:09:32.9]}
11. f3 {[%clk 0:09:42.1]} 11... Bh5 {[%clk 0:09:33.8]} 12. g4 {[%clk 0:09:09.4]}
12... Bg6 {[%clk 0:09:33.4]} 13. Ng3 {[%clk 0:09:07.7]} 13... Re8 {[%clk
0:08:42.5]} 14. Ra2 {[%clk 0:09:02.3]} 14... Qa5 {[%clk 0:08:39.6]} 15. Rc2
{[%clk 0:08:35.4]} 15... Rac8 {[%clk 0:08:29.2]} 16. Kh1 {[%clk 0:08:30.5]}
16... Qa4 {[%clk 0:07:58.3]} 17. Bf5 {[%clk 0:05:48.1]} 17... Rcd8 {[%clk
0:07:21.1]} 18. Qd2 {[%clk 0:05:14.2]} 18... Na5 {[%clk 0:07:13.3]} 19. Qf2
{[%clk 0:04:57.3]} 19... Nb3 {[%clk 0:06:35.3]} 20. Bb2 {[%clk 0:04:55.4]} 20...
Re7 {[%clk 0:06:29.1]} 21. Re2 {[%clk 0:04:00]} 21... Qc6 {[%clk 0:05:26.4]} 22.
h4 {[%clk 0:03:54.7]} 22... Bxf5 {[%clk 0:05:07.1]} 23. Nxf5 {[%clk 0:03:54.9]}
23... Re6 {[%clk 0:05:07.3]} 24. h5 {[%clk 0:03:46.8]} 24... g6 {[%clk
0:05:05.6]} 25. Rg1 {[%clk 0:03:42.5]} 25... Kh8 {[%clk 0:04:50.8]} 26. Nh6
{[%clk 0:03:17]} 26... Kg7 {[%clk 0:04:49.9]} 27. Nf5+ {[%clk 0:02:59.2]} 27...
Kf8 {[%clk 0:04:42]} 28. Ng3 {[%clk 0:02:52.3]} 28... Rde8 {[%clk 0:04:27.7]}
29. Rge1 {[%clk 0:02:50.6]} 29... Qd7 {[%clk 0:03:25.2]} 30. Qh2 {[%clk
0:02:48.4]} 30... Kg7 {[%clk 0:02:08.8]} 31. dxc5 {[%clk 0:02:45.6]} 31... Nxc5
{[%clk 0:01:48.4]} 32. c4 {[%clk 0:02:38.8]} 32... Kg8 {[%clk 0:01:33.3]} 33.
hxg6 {[%clk 0:02:25.9]} 33... fxg6 {[%clk 0:01:31.8]} 34. cxd5 {[%clk
0:02:19.2]} 34... Nxd5 {[%clk 0:01:25.6]} 35. e4 {[%clk 0:01:51.8]} 35... Nf4
{[%clk 0:01:25.4]} 36. Rd2 {[%clk 0:01:50.5]} 36... Rd6 {[%clk 0:00:34.6]} 37.
Rxd6 {[%clk 0:01:28.7]} 37... Qxd6 {[%clk 0:00:36.5]} 38. Nf5 {[%clk 0:00:58.2]}
38... Qc7 {[%clk 0:00:17.7]} 39. Rc1 {[%clk 0:00:30.7]} 39... b6 {[%clk
0:00:11.6]} 40. Ba1 {[%clk 0:00:24.1]} 40... Nfe6 {[%clk 0:00:05.7]} 41. Be5
{[%clk 0:00:16]} 41... Qf7 {[%clk 0:00:05.4]} 42. Nh6+ {[%clk 0:00:16.1]} 42...
Kf8 {[%clk 0:00:06.6]} 43. Nxf7 {[%clk 0:00:16.8]} 43... Kxf7 {[%clk 0:00:08.5]}
1-0

[Event "GrandPrix_30.05"]
[Site "Chess.com"]
[Date "2020.05.30"]
[Round "2"]
[White "chess_big_master"]
[Black "Valeriy_Neverov"]
[Result "1-0"]
[WhiteElo "2041"]
[BlackElo "2101"]
[TimeControl "600+2"]
[EndTime "8:54:24 PDT"]
[Termination "chess_big_master won on time"]

1. d4 {[%clk 0:10:01.9]} 1... Nf6 {[%clk 0:09:59.3]} 2. Nf3 {[%clk 0:10:02.9]}
2... g6 {[%clk 0:09:55.9]} 3. g3 {[%clk 0:10:03.9]} 3... Bg7 {[%clk 0:09:56.5]}
4. Bg2 {[%clk 0:10:05.1]} 4... O-O {[%clk 0:09:57.2]} 5. O-O {[%clk 0:10:06.8]}
5... d6 {[%clk 0:09:58]} 6. b3 {[%clk 0:10:07.7]} 6... c6 {[%clk 0:09:04]} 7.
Bb2 {[%clk 0:10:04.8]} 7... Bf5 {[%clk 0:08:58.7]} 8. c4 {[%clk 0:09:56.3]} 8...
Qd7 {[%clk 0:08:40]} 9. Re1 {[%clk 0:09:49.1]} 9... Na6 {[%clk 0:08:31]} 10.
Nbd2 {[%clk 0:07:43.1]} 10... d5 {[%clk 0:08:24.3]} 11. Ne5 {[%clk 0:07:35.7]}
11... Qd6 {[%clk 0:08:06.2]} 12. f3 {[%clk 0:06:45.2]} 12... Rad8 {[%clk
0:07:33.3]} 13. e4 {[%clk 0:06:34.9]} 13... Bc8 {[%clk 0:07:25.4]} 14. Nd3
{[%clk 0:05:14.3]} 14... dxe4 {[%clk 0:06:37.1]} 15. fxe4 {[%clk 0:05:14.1]}
15... Qc7 {[%clk 0:05:21.6]} 16. e5 {[%clk 0:04:27.2]} 16... Ng4 {[%clk
0:05:15.9]} 17. h3 {[%clk 0:04:27.1]} 17... Nh6 {[%clk 0:05:15.9]} 18. g4 {[%clk
0:03:38.1]} 18... f5 {[%clk 0:05:00.6]} 19. g5 {[%clk 0:03:15.1]} 19... Nf7
{[%clk 0:05:00.7]} 20. Nf3 {[%clk 0:02:42.8]} 20... e6 {[%clk 0:04:49.2]} 21. b4
{[%clk 0:02:19.9]} 21... b6 {[%clk 0:04:31.3]} 22. b5 {[%clk 0:01:56.4]} 22...
Nb8 {[%clk 0:04:02.9]} 23. Qb3 {[%clk 0:01:42.6]} 23... Bb7 {[%clk 0:03:42]} 24.
Nf4 {[%clk 0:01:25.3]} 24... Rfe8 {[%clk 0:03:37]} 25. Rad1 {[%clk 0:01:02.5]}
25... cxb5 {[%clk 0:03:11.3]} 26. cxb5 {[%clk 0:01:02.3]} 26... Bxf3 {[%clk
0:03:11.7]} 27. Bxf3 {[%clk 0:00:54]} 27... Nxg5 {[%clk 0:03:12.1]} 28. Bg2
{[%clk 0:00:45.3]} 28... Qf7 {[%clk 0:02:44.6]} 29. d5 {[%clk 0:00:42.7]} 29...
exd5 {[%clk 0:02:14.3]} 30. Bxd5 {[%clk 0:00:42.5]} 30... Rxd5 {[%clk
0:02:11.8]} 31. Nxd5 {[%clk 0:00:43]} 31... Nd7 {[%clk 0:00:40.4]} 32. Nf6+
{[%clk 0:00:22.6]} 32... Bxf6 {[%clk 0:00:27.8]} 33. exf6 {[%clk 0:00:23.7]}
33... Rxe1+ {[%clk 0:00:25.1]} 34. Rxe1 {[%clk 0:00:23.8]} 34... Qxb3 {[%clk
0:00:25.8]} 35. Re8+ {[%clk 0:00:21.8]} 35... Kf7 {[%clk 0:00:13.8]} 36. Re7+
{[%clk 0:00:21.9]} 36... Kf8 {[%clk 0:00:12.1]} 37. axb3 {[%clk 0:00:22.3]}
37... Nc5 {[%clk 0:00:11.9]} 38. Ba3 {[%clk 0:00:16.6]} 38... Nge4 {[%clk
0:00:06.4]} 39. Rxh7 {[%clk 0:00:15.3]} 39... Nxf6 {[%clk 0:00:04.2]} 40. Rxa7
{[%clk 0:00:16.1]} 40... Ne4 {[%clk 0:00:03.4]} 41. Ra8+ {[%clk 0:00:15.2]}
41... Kf7 {[%clk 0:00:04]} 42. Rb8 {[%clk 0:00:15.9]} 42... Nd7 {[%clk
0:00:03.3]} 43. Rb7 {[%clk 0:00:16.4]} 1-0

[Event "GrandPrix_30.05"]
[Site "Chess.com"]
[Date "2020.05.30"]
[Round "2"]
[White "francyIM"]
[Black "Firegrizzly"]
[Result "1-0"]
[WhiteElo "2580"]
[BlackElo "2177"]
[TimeControl "600+2"]
[EndTime "8:54:27 PDT"]
[Termination "francyIM won by resignation"]

1. d4 {[%clk 0:10:01.9]} 1... Nf6 {[%clk 0:09:59.9]} 2. c4 {[%clk 0:10:02.1]}
2... e6 {[%clk 0:10:00.8]} 3. Nc3 {[%clk 0:10:02.5]} 3... d5 {[%clk 0:10:01.7]}
4. cxd5 {[%clk 0:09:58.9]} 4... exd5 {[%clk 0:10:02]} 5. Bg5 {[%clk 0:09:59.5]}
5... c6 {[%clk 0:10:02.9]} 6. e3 {[%clk 0:10:00.4]} 6... Bd6 {[%clk 0:10:02.5]}
7. Bd3 {[%clk 0:09:57.6]} 7... Nbd7 {[%clk 0:10:03]} 8. Qc2 {[%clk 0:09:54.7]}
8... h6 {[%clk 0:10:02.8]} 9. Bh4 {[%clk 0:09:55.8]} 9... O-O {[%clk 0:10:03.7]}
10. Nge2 {[%clk 0:09:55.7]} 10... Re8 {[%clk 0:10:03.9]} 11. h3 {[%clk
0:09:56.2]} 11... Nf8 {[%clk 0:09:55.9]} 12. g4 {[%clk 0:09:57]} 12... a5 {[%clk
0:09:52.5]} 13. Bg3 {[%clk 0:09:27.5]} 13... Ne6 {[%clk 0:09:43.9]} 14. O-O
{[%clk 0:09:24.4]} 14... Ng5 {[%clk 0:09:26.4]} 15. Kg2 {[%clk 0:09:22.8]} 15...
b5 {[%clk 0:08:06.3]} 16. Bxd6 {[%clk 0:09:14.5]} 16... Qxd6 {[%clk 0:08:06.7]}
17. Ng3 {[%clk 0:09:16.4]} 17... Ra7 {[%clk 0:07:51.6]} 18. Rae1 {[%clk
0:09:11.4]} 18... Rae7 {[%clk 0:07:39.8]} 19. Bf5 {[%clk 0:08:22.9]} 19... g6
{[%clk 0:07:29.8]} 20. Bxc8 {[%clk 0:07:00.7]} 20... Rxc8 {[%clk 0:06:36.8]} 21.
Nxb5 {[%clk 0:07:00]} 21... Qd7 {[%clk 0:06:37.9]} 22. Nc3 {[%clk 0:06:59.2]}
22... h5 {[%clk 0:06:26.5]} 23. h4 {[%clk 0:06:36]} 23... Nge4 {[%clk
0:06:08.5]} 24. g5 {[%clk 0:05:19.3]} 24... Nh7 {[%clk 0:05:39.4]} 25. Ncxe4
{[%clk 0:04:30.1]} 25... dxe4 {[%clk 0:05:37.8]} 26. Qc5 {[%clk 0:04:21.3]}
26... Rce8 {[%clk 0:04:45.8]} 27. Rc1 {[%clk 0:04:19.4]} 27... Qg4 {[%clk
0:04:44.7]} 28. Rh1 {[%clk 0:04:19.5]} 28... Qf3+ {[%clk 0:04:42.3]} 29. Kg1
{[%clk 0:04:18.7]} 29... a4 {[%clk 0:03:53]} 30. Qxc6 {[%clk 0:03:03]} 30... f6
{[%clk 0:03:40.9]} 31. gxf6 {[%clk 0:02:37.2]} 31... Nxf6 {[%clk 0:03:37.1]} 32.
Qc4+ {[%clk 0:01:27.7]} 32... Kh7 {[%clk 0:03:32.4]} 33. Qe2 {[%clk 0:01:28.5]}
33... Ng4 {[%clk 0:03:29.5]} 34. Qxf3 {[%clk 0:01:26]} 34... exf3 {[%clk
0:03:30.6]} 35. Nf1 {[%clk 0:01:21.3]} 35... Rb7 {[%clk 0:03:21.9]} 36. Rc2
{[%clk 0:01:19.6]} 36... Reb8 {[%clk 0:03:21.5]} 37. b3 {[%clk 0:01:13.9]} 37...
axb3 {[%clk 0:03:17]} 38. axb3 {[%clk 0:01:15.8]} 38... Rxb3 {[%clk 0:03:18]}
39. Rh3 {[%clk 0:01:15.5]} 39... Rb1 {[%clk 0:01:49.6]} 40. Rxf3 {[%clk
0:01:10.1]} 40... g5 {[%clk 0:01:29]} 41. Rc7+ {[%clk 0:01:04.1]} 41... Kg6
{[%clk 0:01:28.3]} 42. Rc6+ {[%clk 0:01:04.3]} 42... Kg7 {[%clk 0:01:27.2]} 43.
hxg5 {[%clk 0:01:02.7]} 43... Ra1 {[%clk 0:01:17.3]} 44. Kg2 {[%clk 0:00:47.5]}
44... Rbb1 {[%clk 0:01:00.6]} 45. Ng3 {[%clk 0:00:47.2]} 45... Rg1+ {[%clk
0:00:45.9]} 46. Kh3 {[%clk 0:00:45.7]} 46... Rh1+ {[%clk 0:00:43.7]} 47. Nxh1
{[%clk 0:00:43.7]} 47... Rxh1+ {[%clk 0:00:45.6]} 48. Kg2 {[%clk 0:00:44.1]}
48... Rh2+ {[%clk 0:00:44]} 49. Kg3 {[%clk 0:00:45.2]} 49... Rh1 {[%clk
0:00:44.7]} 50. g6 {[%clk 0:00:42.9]} 50... Nh6 {[%clk 0:00:43.6]} 51. Kg2
{[%clk 0:00:37.2]} 51... Ra1 {[%clk 0:00:41.8]} 52. Rg3 {[%clk 0:00:37.9]} 52...
h4 {[%clk 0:00:41.6]} 53. Rc7+ {[%clk 0:00:38.7]} 53... Kg8 {[%clk 0:00:40.9]}
54. Rh3 {[%clk 0:00:39]} 54... Nf5 {[%clk 0:00:40]} 55. Rf3 {[%clk 0:00:39.9]}
55... Nh6 {[%clk 0:00:38.3]} 56. g7 {[%clk 0:00:41.1]} 56... Ra8 {[%clk
0:00:35.9]} 57. Rf8+ {[%clk 0:00:41.7]} 57... Rxf8 {[%clk 0:00:36.3]} 58.
gxf8=Q+ {[%clk 0:00:43.6]} 1-0

[Event "GrandPrix_30.05"]
[Site "Chess.com"]
[Date "2020.05.30"]
[Round "2"]
[White "Grandelicious"]
[Black "Ave_Mariia"]
[Result "1/2-1/2"]
[WhiteElo "2578"]
[BlackElo "2178"]
[TimeControl "600+2"]
[EndTime "8:54:27 PDT"]
[Termination "Game drawn by repetition"]

1. Nf3 {[%clk 0:10:01.9]} 1... Nf6 {[%clk 0:09:58.6]} 2. g3 {[%clk 0:10:03.3]}
2... g6 {[%clk 0:09:59.9]} 3. Bg2 {[%clk 0:10:04.8]} 3... Bg7 {[%clk 0:10:01.3]}
4. b3 {[%clk 0:10:06.4]} 4... O-O {[%clk 0:09:59.5]} 5. Bb2 {[%clk 0:10:07.7]}
5... d6 {[%clk 0:09:58]} 6. d4 {[%clk 0:10:04]} 6... c6 {[%clk 0:09:56.3]} 7.
O-O {[%clk 0:10:02.7]} 7... Nbd7 {[%clk 0:09:49.4]} 8. c4 {[%clk 0:09:56]} 8...
Qc7 {[%clk 0:09:08.4]} 9. Nc3 {[%clk 0:09:45.3]} 9... e5 {[%clk 0:08:52.8]} 10.
e4 {[%clk 0:09:25.5]} 10... Re8 {[%clk 0:08:20.8]} 11. Re1 {[%clk 0:09:15.8]}
11... exd4 {[%clk 0:07:25.3]} 12. Nxd4 {[%clk 0:09:17.7]} 12... Nc5 {[%clk
0:07:24.6]} 13. b4 {[%clk 0:08:45.2]} 13... Ne6 {[%clk 0:07:10]} 14. Nb3 {[%clk
0:08:41.1]} 14... Ng5 {[%clk 0:06:24.2]} 15. Qd2 {[%clk 0:07:27]} 15... Nh3+
{[%clk 0:06:08.1]} 16. Kh1 {[%clk 0:07:20.6]} 16... Be6 {[%clk 0:04:27.2]} 17.
Nd1 {[%clk 0:07:01.8]} 17... h5 {[%clk 0:03:38.9]} 18. Ne3 {[%clk 0:06:44.7]}
18... Ng5 {[%clk 0:03:27.8]} 19. f3 {[%clk 0:06:19.5]} 19... Qc8 {[%clk
0:02:52.4]} 20. Qxd6 {[%clk 0:04:28.5]} 20... Nfxe4 {[%clk 0:02:42.7]} 21. fxe4
{[%clk 0:04:12.6]} 21... Bxb2 {[%clk 0:02:43.6]} 22. Rad1 {[%clk 0:04:12.4]}
22... Bh3 {[%clk 0:02:38.6]} 23. Qf4 {[%clk 0:04:04]} 23... Bxg2+ {[%clk
0:02:34.4]} 24. Nxg2 {[%clk 0:04:00.9]} 24... Nh3 {[%clk 0:02:21.7]} 25. Qd2
{[%clk 0:03:59.2]} 25... Be5 {[%clk 0:02:14.8]} 26. Ne3 {[%clk 0:01:57.2]} 26...
Ng5 {[%clk 0:02:01.8]} 27. Qg2 {[%clk 0:01:09.8]} 27... Bc3 {[%clk 0:02:02.1]}
28. Rf1 {[%clk 0:01:07.9]} 28... Rxe4 {[%clk 0:01:55.4]} 29. Nc2 {[%clk
0:01:03.5]} 29... Qe8 {[%clk 0:01:31.3]} 30. Rf2 {[%clk 0:00:56.2]} 30... Rxc4
{[%clk 0:01:21.7]} 31. Nc5 {[%clk 0:00:53]} 31... b6 {[%clk 0:01:19.7]} 32. Re2
{[%clk 0:00:33.5]} 32... Qc8 {[%clk 0:01:08.3]} 33. Nd7 {[%clk 0:00:27.6]} 33...
Ne6 {[%clk 0:00:49.3]} 34. a3 {[%clk 0:00:23.8]} 34... Bg7 {[%clk 0:00:49.8]}
35. Red2 {[%clk 0:00:18.5]} 35... Qc7 {[%clk 0:00:38.5]} 36. Ne3 {[%clk
0:00:16.7]} 36... Rc3 {[%clk 0:00:37.2]} 37. Qe4 {[%clk 0:00:17.6]} 37... Re8
{[%clk 0:00:37]} 38. Rd6 {[%clk 0:00:17.3]} 38... Qc8 {[%clk 0:00:33.2]} 39. Ng2
{[%clk 0:00:11.7]} 39... Nc5 {[%clk 0:00:30.1]} 40. Qf4 {[%clk 0:00:10.4]} 40...
Nxd7 {[%clk 0:00:30.1]} 41. Rxd7 {[%clk 0:00:12.3]} 41... Rf8 {[%clk 0:00:19.2]}
42. Rxa7 {[%clk 0:00:13.5]} 42... Qe6 {[%clk 0:00:18.1]} 43. Qf1 {[%clk
0:00:10.5]} 43... Qe4 {[%clk 0:00:18.3]} 44. Re1 {[%clk 0:00:11.7]} 44... Qd5
{[%clk 0:00:16.3]} 45. Rd1 {[%clk 0:00:11.7]} 45... Qe4 {[%clk 0:00:16.4]} 46.
Re1 {[%clk 0:00:13.2]} 46... Qd5 {[%clk 0:00:17.6]} 47. Rd1 {[%clk 0:00:14.7]}
47... Qe4 {[%clk 0:00:18.8]} 1/2-1/2

[Event "GrandPrix_30.05"]
[Site "Chess.com"]
[Date "2020.05.30"]
[Round "2"]
[White "Thor736"]
[Black "Rakhmanov_Aleksandr"]
[Result "0-1"]
[WhiteElo "2080"]
[BlackElo "2460"]
[TimeControl "600+2"]
[EndTime "8:54:29 PDT"]
[Termination "Rakhmanov_Aleksandr won on time"]

1. e4 {[%clk 0:10:01.1]} 1... c5 {[%clk 0:10:00.3]} 2. Nf3 {[%clk 0:10:02.4]}
2... Nf6 {[%clk 0:10:01.2]} 3. Nc3 {[%clk 0:09:59.3]} 3... d5 {[%clk 0:10:01.2]}
4. Bb5+ {[%clk 0:09:57.8]} 4... Bd7 {[%clk 0:10:00.9]} 5. e5 {[%clk 0:09:57.3]}
5... Bxb5 {[%clk 0:09:55]} 6. Nxb5 {[%clk 0:09:57.1]} 6... Nfd7 {[%clk
0:09:47.5]} 7. e6 {[%clk 0:09:28.5]} 7... fxe6 {[%clk 0:09:48.3]} 8. Ng5 {[%clk
0:09:19.9]} 8... Qb6 {[%clk 0:09:48.5]} 9. c4 {[%clk 0:08:07.6]} 9... dxc4
{[%clk 0:09:17.8]} 10. Na3 {[%clk 0:07:14.6]} 10... Qc6 {[%clk 0:09:05.3]} 11.
O-O {[%clk 0:07:10.6]} 11... Qd5 {[%clk 0:08:41.9]} 12. Nh3 {[%clk 0:05:41]}
12... Nc6 {[%clk 0:08:08.1]} 13. Re1 {[%clk 0:05:14.5]} 13... e5 {[%clk
0:07:35.7]} 14. Nb5 {[%clk 0:04:52.4]} 14... Rc8 {[%clk 0:06:36.2]} 15. Ng5
{[%clk 0:04:18.9]} 15... Nf6 {[%clk 0:06:13.1]} 16. Nc3 {[%clk 0:04:00.4]} 16...
Qd7 {[%clk 0:05:46.7]} 17. b3 {[%clk 0:03:40.1]} 17... cxb3 {[%clk 0:05:26.2]}
18. Qxb3 {[%clk 0:03:32.2]} 18... e6 {[%clk 0:05:17.6]} 19. Nxe6 {[%clk
0:01:48.8]} 19... Na5 {[%clk 0:02:48.6]} 20. Qa3 {[%clk 0:01:32.2]} 20... Nc4
{[%clk 0:01:05.9]} 21. Nxf8 {[%clk 0:01:29.9]} 21... Nxa3 {[%clk 0:01:06.1]} 22.
Nxd7 {[%clk 0:01:30.6]} 22... Nc2 {[%clk 0:01:05.5]} 23. Nxf6+ {[%clk
0:01:29.9]} 23... gxf6 {[%clk 0:01:07]} 24. Bb2 {[%clk 0:01:28.3]} 24... Kf7
{[%clk 0:01:04.4]} 25. f4 {[%clk 0:01:11.7]} 25... Rhd8 {[%clk 0:00:38.5]} 26.
fxe5 {[%clk 0:01:04.8]} 26... Nxe1 {[%clk 0:00:32.3]} 27. Rxe1 {[%clk
0:01:00.6]} 27... Rxd2 {[%clk 0:00:33.7]} 28. Ne4 {[%clk 0:00:44.3]} 28... Rxb2
{[%clk 0:00:33.1]} 29. Nd6+ {[%clk 0:00:44.9]} 29... Ke6 {[%clk 0:00:34.4]} 30.
Nxc8 {[%clk 0:00:38.4]} 30... fxe5 {[%clk 0:00:27.3]} 31. Nxa7 {[%clk
0:00:37.3]} 31... c4 {[%clk 0:00:28]} 32. Rc1 {[%clk 0:00:29.7]} 32... Kd5
{[%clk 0:00:26.2]} 33. a4 {[%clk 0:00:27.7]} 33... Kd4 {[%clk 0:00:22.6]} 34.
Nb5+ {[%clk 0:00:26.1]} 34... Kc5 {[%clk 0:00:13.7]} 35. Re1 {[%clk 0:00:17.3]}
35... Kb4 {[%clk 0:00:09.3]} 36. Rxe5 {[%clk 0:00:11.4]} 36... Kxa4 {[%clk
0:00:10.6]} 37. Nd4 {[%clk 0:00:05]} 37... b5 {[%clk 0:00:10.2]} 38. Kf1 {[%clk
0:00:05]} 38... c3 {[%clk 0:00:09.8]} 39. h4 {[%clk 0:00:04]} 39... b4 {[%clk
0:00:10.7]} 40. g4 {[%clk 0:00:04.1]} 40... b3 {[%clk 0:00:10.2]} 41. Ke1 {[%clk
0:00:04.9]} 41... Rb1+ {[%clk 0:00:10.8]} 42. Ke2 {[%clk 0:00:05.9]} 42... c2
{[%clk 0:00:12.3]} 43. Nxc2 {[%clk 0:00:03.2]} 43... bxc2 {[%clk 0:00:12.9]} 0-1

[Event "GrandPrix_30.05"]
[Site "Chess.com"]
[Date "2020.05.30"]
[Round "2"]
[White "Eltaj_Safarli"]
[Black "econpower"]
[Result "0-1"]
[WhiteElo "2374"]
[BlackElo "2239"]
[TimeControl "600+2"]
[EndTime "8:54:33 PDT"]
[Termination "econpower won by resignation"]

1. e4 {[%clk 0:10:01.9]} 1... d6 {[%clk 0:09:56.4]} 2. d4 {[%clk 0:10:02.5]}
2... Nf6 {[%clk 0:09:57.4]} 3. Nc3 {[%clk 0:10:03.4]} 3... e5 {[%clk 0:09:58.6]}
4. Nf3 {[%clk 0:10:04.7]} 4... Nbd7 {[%clk 0:09:59.2]} 5. Bc4 {[%clk 0:10:05.9]}
5... Be7 {[%clk 0:10:00.8]} 6. O-O {[%clk 0:10:07.2]} 6... O-O {[%clk 0:10:02]}
7. a4 {[%clk 0:10:08.6]} 7... c6 {[%clk 0:10:03]} 8. a5 {[%clk 0:10:09.8]} 8...
Rb8 {[%clk 0:09:59.2]} 9. Re1 {[%clk 0:10:00.2]} 9... Qc7 {[%clk 0:09:45.8]} 10.
d5 {[%clk 0:09:32.3]} 10... cxd5 {[%clk 0:08:59]} 11. Bxd5 {[%clk 0:09:11.5]}
11... Nxd5 {[%clk 0:07:08.7]} 12. Nxd5 {[%clk 0:09:11.3]} 12... Qd8 {[%clk
0:07:10.6]} 13. Be3 {[%clk 0:09:07.7]} 13... Ra8 {[%clk 0:07:11.3]} 14. Nd2
{[%clk 0:08:03.7]} 14... Nf6 {[%clk 0:07:10]} 15. Nxf6+ {[%clk 0:08:04.3]} 15...
Bxf6 {[%clk 0:07:10.8]} 16. Nb1 {[%clk 0:07:51.2]} 16... Be6 {[%clk 0:05:43.7]}
17. Nc3 {[%clk 0:07:50.7]} 17... Be7 {[%clk 0:05:45.3]} 18. Nd5 {[%clk
0:07:39.6]} 18... Bg5 {[%clk 0:05:43.5]} 19. Qd2 {[%clk 0:07:02.9]} 19... Bxe3
{[%clk 0:05:42.9]} 20. Nxe3 {[%clk 0:06:52.4]} 20... Rc8 {[%clk 0:05:38.8]} 21.
Red1 {[%clk 0:06:46.9]} 21... Rc6 {[%clk 0:05:38.5]} 22. b3 {[%clk 0:06:40.1]}
22... g6 {[%clk 0:05:10.7]} 23. c4 {[%clk 0:06:32]} 23... f5 {[%clk 0:05:09.6]}
24. Nd5 {[%clk 0:06:18.5]} 24... fxe4 {[%clk 0:04:17.3]} 25. Nb4 {[%clk
0:06:03.7]} 25... Qf6 {[%clk 0:03:18.3]} 26. Nxc6 {[%clk 0:05:52.4]} 26... bxc6
{[%clk 0:03:18.9]} 27. Qxd6 {[%clk 0:04:30.3]} 27... Qxf2+ {[%clk 0:03:18.5]}
28. Kh1 {[%clk 0:04:31.3]} 28... Bg4 {[%clk 0:03:20.4]} 29. Rg1 {[%clk
0:04:24.6]} 29... e3 {[%clk 0:03:21.4]} 30. Qxe5 {[%clk 0:04:14.6]} 30... e2
{[%clk 0:03:22.1]} 31. h3 {[%clk 0:03:30.4]} 31... Bd7 {[%clk 0:01:39.5]} 32.
Rae1 {[%clk 0:02:24.9]} 32... Re8 {[%clk 0:01:39.4]} 33. Qd6 {[%clk 0:02:09.8]}
33... Bf5 {[%clk 0:01:39]} 34. Qxc6 {[%clk 0:02:08.8]} 34... Re3 {[%clk
0:01:39.6]} 35. Qa8+ {[%clk 0:01:01.9]} 35... Kg7 {[%clk 0:01:39.8]} 36. Qxa7+
{[%clk 0:01:02.7]} 36... Kh6 {[%clk 0:01:40.8]} 37. Qa8 {[%clk 0:00:26]} 37...
Be4 {[%clk 0:01:13.3]} 38. Qc8 {[%clk 0:00:27]} 38... Bxg2+ {[%clk 0:00:23.5]}
39. Rxg2 {[%clk 0:00:28.2]} 39... Qxe1+ {[%clk 0:00:24.6]} 40. Kh2 {[%clk
0:00:29.8]} 40... Qf1 {[%clk 0:00:26]} 41. Rxg6+ {[%clk 0:00:04.5]} 41... hxg6
{[%clk 0:00:26.6]} 42. Qh8+ {[%clk 0:00:05.5]} 42... Kg5 {[%clk 0:00:27.5]} 43.
Qd8+ {[%clk 0:00:02.8]} 43... Kf4 {[%clk 0:00:19.1]} 44. Qf6+ {[%clk 0:00:02.5]}
44... Ke4 {[%clk 0:00:17.4]} 45. Qe6+ {[%clk 0:00:03.2]} 45... Kd3 {[%clk
0:00:17]} 46. Qxg6+ {[%clk 0:00:03.7]} 46... Kd2 {[%clk 0:00:17.8]} 0-1